[Event "Early-Titled-Tuesday-Blitz-November-28-2023"]
[Site "Chess.com"]
[Date "2023.11.28"]
[Round "2"]
[White "FM-to-GM"]
[Black "Orishuas"]
[Result "1-0"]
[WhiteElo "2662"]
[BlackElo "2362"]
[TimeControl "180+1"]
[EndTime "8:17:17 PST"]
[Termination "FM-to-GM won on time"]

1. d4 {[%clk 0:03:00.9]} 1... Nf6 {[%clk 0:02:58.3]} 2. c4 {[%clk 0:03:00.7]}
2... c5 {[%clk 0:02:58.3]} 3. d5 {[%clk 0:03:01]} 3... b5 {[%clk 0:02:58.4]} 4.
cxb5 {[%clk 0:03:01.9]} 4... a6 {[%clk 0:02:58.3]} 5. bxa6 {[%clk 0:03:02.8]}
5... g6 {[%clk 0:02:57.5]} 6. Nc3 {[%clk 0:03:03.4]} 6... Bg7 {[%clk 0:02:56.7]}
7. e4 {[%clk 0:03:01.9]} 7... O-O {[%clk 0:02:54.5]} 8. Nf3 {[%clk 0:03:00.9]}
8... Qa5 {[%clk 0:02:53.7]} 9. a7 {[%clk 0:03:01]} 9... Rxa7 {[%clk 0:02:35.4]}
10. Bd2 {[%clk 0:03:00.9]} 10... Qc7 {[%clk 0:02:23.6]} 11. Nb5 {[%clk
0:02:51.9]} 11... Qb6 {[%clk 0:02:20.1]} 12. Nxa7 {[%clk 0:02:49.6]} 12... Qxa7
{[%clk 0:02:19.9]} 13. Qc2 {[%clk 0:02:49.9]} 13... d6 {[%clk 0:02:18.5]} 14.
Bd3 {[%clk 0:02:42.8]} 14... Ba6 {[%clk 0:02:14]} 15. O-O {[%clk 0:02:40.6]}
15... Nbd7 {[%clk 0:02:14.2]} 16. Qa4 {[%clk 0:02:39.1]} 16... Ra8 {[%clk
0:02:10.2]} 17. Bxa6 {[%clk 0:02:27.4]} 17... Qxa6 {[%clk 0:02:09.5]} 18. Qxa6
{[%clk 0:02:28.3]} 18... Rxa6 {[%clk 0:02:09.6]} 19. Rfe1 {[%clk 0:02:27.3]}
19... Nb6 {[%clk 0:02:08.5]} 20. Bc3 {[%clk 0:02:25.7]} 20... Na4 {[%clk
0:02:04.9]} 21. e5 {[%clk 0:02:17.8]} 21... Nxd5 {[%clk 0:01:30.8]} 22. exd6
{[%clk 0:02:16.3]} 22... Rxd6 {[%clk 0:01:24.7]} 23. Bxg7 {[%clk 0:02:14.8]}
23... Kxg7 {[%clk 0:01:24.5]} 24. b3 {[%clk 0:02:15.4]} 24... Nac3 {[%clk
0:01:20.6]} 25. Ne5 {[%clk 0:02:12.4]} 25... Ra6 {[%clk 0:01:10.9]} 26. a4
{[%clk 0:02:12.5]} 26... Nf4 {[%clk 0:01:06.8]} 27. Nc4 {[%clk 0:02:03.1]} 27...
e6 {[%clk 0:01:03.9]} 28. g3 {[%clk 0:01:59.9]} 28... Nfd5 {[%clk 0:00:59]} 29.
Rec1 {[%clk 0:01:50.9]} 29... Ne2+ {[%clk 0:00:57.4]} 30. Kf1 {[%clk 0:01:50.1]}
30... Nxc1 {[%clk 0:00:57.4]} 31. Rxc1 {[%clk 0:01:51]} 31... Nb4 {[%clk
0:00:56.8]} 32. Nd2 {[%clk 0:01:46.7]} 32... Rc6 {[%clk 0:00:50.3]} 33. Ne4
{[%clk 0:01:45.4]} 33... Na6 {[%clk 0:00:43.5]} 34. Ke2 {[%clk 0:01:36.6]} 34...
f5 {[%clk 0:00:43.7]} 35. Nc3 {[%clk 0:01:35.1]} 35... Kf6 {[%clk 0:00:42.6]}
36. Nb5 {[%clk 0:01:34.5]} 36... e5 {[%clk 0:00:39]} 37. Kd3 {[%clk 0:01:33.5]}
37... Rc8 {[%clk 0:00:35.6]} 38. Kc4 {[%clk 0:01:30.9]} 38... Rd8 {[%clk
0:00:33.9]} 39. Nc3 {[%clk 0:01:26]} 39... Rd4+ {[%clk 0:00:31.7]} 40. Kb5
{[%clk 0:01:26]} 40... Nb4 {[%clk 0:00:31.7]} 41. a5 {[%clk 0:01:19.7]} 41...
Nd3 {[%clk 0:00:24.5]} 42. Rb1 {[%clk 0:01:15.3]} 42... Rb4+ {[%clk 0:00:23.9]}
43. Kc6 {[%clk 0:01:15.2]} 43... c4 {[%clk 0:00:22.4]} 44. Nd5+ {[%clk
0:01:15.4]} 44... Ke6 {[%clk 0:00:19.9]} 45. Nxb4 {[%clk 0:01:16.3]} 45... Nxb4+
{[%clk 0:00:19.9]} 46. Kc5 {[%clk 0:01:16.6]} 46... Nc2 {[%clk 0:00:08.2]} 47.
bxc4 {[%clk 0:01:14.8]} 1-0

[Event "Early-Titled-Tuesday-Blitz-November-28-2023"]
[Site "Chess.com"]
[Date "2023.11.28"]
[Round "2"]
[White "tandercat"]
[Black "ljuks68"]
[Result "0-1"]
[WhiteElo "2057"]
[BlackElo "2432"]
[TimeControl "180+1"]
[EndTime "8:17:17 PST"]
[Termination "ljuks68 won on time"]

1. d4 {[%clk 0:03:00.9]} 1... d5 {[%clk 0:03:00]} 2. c4 {[%clk 0:03:00.3]} 2...
c6 {[%clk 0:02:59.8]} 3. cxd5 {[%clk 0:02:59.8]} 3... cxd5 {[%clk 0:02:59.4]} 4.
Nc3 {[%clk 0:03:00.7]} 4... Nf6 {[%clk 0:02:59.6]} 5. Bf4 {[%clk 0:03:01]} 5...
Nc6 {[%clk 0:03:00.2]} 6. e3 {[%clk 0:03:00.4]} 6... Bf5 {[%clk 0:03:00.5]} 7.
Qb3 {[%clk 0:02:52]} 7... Na5 {[%clk 0:03:00.4]} 8. Qa4+ {[%clk 0:02:51]} 8...
Bd7 {[%clk 0:02:58.2]} 9. Qc2 {[%clk 0:02:50.2]} 9... e6 {[%clk 0:02:51.2]} 10.
Bd3 {[%clk 0:02:45.1]} 10... Nc6 {[%clk 0:02:50.9]} 11. a3 {[%clk 0:02:41.3]}
11... Nh5 {[%clk 0:02:50]} 12. Be5 {[%clk 0:02:33.1]} 12... Nxe5 {[%clk
0:02:42.3]} 13. dxe5 {[%clk 0:02:34]} 13... g6 {[%clk 0:02:42]} 14. Nf3 {[%clk
0:02:13]} 14... Ng7 {[%clk 0:02:40.3]} 15. O-O {[%clk 0:01:53.9]} 15... Be7
{[%clk 0:02:40]} 16. e4 {[%clk 0:01:50.5]} 16... dxe4 {[%clk 0:02:24.7]} 17.
Bxe4 {[%clk 0:01:44.8]} 17... Qb6 {[%clk 0:02:22.9]} 18. Rfd1 {[%clk 0:01:37.6]}
18... Rd8 {[%clk 0:02:22.5]} 19. Na4 {[%clk 0:01:17.4]} 19... Qb5 {[%clk
0:02:19]} 20. Nc3 {[%clk 0:00:50.3]} 20... Qb6 {[%clk 0:02:18.5]} 21. Rac1
{[%clk 0:00:36.2]} 21... O-O {[%clk 0:02:17.8]} 22. Na4 {[%clk 0:00:31.9]} 22...
Bxa4 {[%clk 0:02:13.3]} 23. Qxa4 {[%clk 0:00:29.6]} 23... Qxb2 {[%clk
0:02:13.4]} 24. Qxa7 {[%clk 0:00:20.5]} 24... Bxa3 {[%clk 0:02:02.7]} 25. Qxb7
{[%clk 0:00:16.6]} 25... Qxb7 {[%clk 0:02:00.5]} 26. Bxb7 {[%clk 0:00:16.6]}
26... Bxc1 {[%clk 0:02:00.7]} 27. Rxc1 {[%clk 0:00:16.7]} 27... Rd7 {[%clk
0:01:51.9]} 28. Be4 {[%clk 0:00:14]} 28... Rfd8 {[%clk 0:01:51.2]} 29. g4 {[%clk
0:00:13.4]} 29... Rd1+ {[%clk 0:01:50.8]} 30. Rxd1 {[%clk 0:00:13.1]} 30...
Rxd1+ {[%clk 0:01:51]} 31. Kg2 {[%clk 0:00:13.8]} 31... Ne8 {[%clk 0:01:45.4]}
32. Ng5 {[%clk 0:00:08.4]} 32... h6 {[%clk 0:01:44.2]} 33. Nh3 {[%clk
0:00:08.1]} 33... Nc7 {[%clk 0:01:32.5]} 34. Nf4 {[%clk 0:00:08]} 34... Rd4
{[%clk 0:01:30.7]} 35. f3 {[%clk 0:00:06.5]} 35... Nb5 {[%clk 0:01:18.7]} 36.
Ne2 {[%clk 0:00:04.8]} 36... Rd2 {[%clk 0:01:16.9]} 37. Kf1 {[%clk 0:00:04.4]}
37... Rb2 {[%clk 0:01:14]} 38. h4 {[%clk 0:00:04]} 38... Na3 {[%clk 0:00:56.6]}
39. Ke1 {[%clk 0:00:03.7]} 39... Nc4 {[%clk 0:00:56.5]} 40. Kf1 {[%clk
0:00:03.2]} 40... Nxe5 {[%clk 0:00:56]} 41. Ke1 {[%clk 0:00:01.3]} 41... Nc4
{[%clk 0:00:56.2]} 0-1

[Event "Early-Titled-Tuesday-Blitz-November-28-2023"]
[Site "Chess.com"]
[Date "2023.11.28"]
[Round "2"]
[White "GaiozNigalidze"]
[Black "Valy02chess"]
[Result "1-0"]
[WhiteElo "2663"]
[BlackElo "2262"]
[TimeControl "180+1"]
[EndTime "8:17:19 PST"]
[Termination "GaiozNigalidze won on time"]

1. d4 {[%clk 0:03:00.9]} 1... e6 {[%clk 0:02:55.9]} 2. c4 {[%clk 0:03:00.9]}
2... b6 {[%clk 0:02:53]} 3. e4 {[%clk 0:02:58.6]} 3... Bb7 {[%clk 0:02:50.7]} 4.
Bd3 {[%clk 0:02:57.9]} 4... f5 {[%clk 0:02:48.1]} 5. Nc3 {[%clk 0:02:50.6]} 5...
Bb4 {[%clk 0:02:47.1]} 6. d5 {[%clk 0:02:23.4]} 6... fxe4 {[%clk 0:02:40.5]} 7.
Bxe4 {[%clk 0:02:22.8]} 7... Nf6 {[%clk 0:02:40.7]} 8. Bf3 {[%clk 0:02:22.8]}
8... exd5 {[%clk 0:02:19.2]} 9. cxd5 {[%clk 0:02:22.2]} 9... O-O {[%clk
0:01:48.3]} 10. Ne2 {[%clk 0:02:20.9]} 10... d6 {[%clk 0:01:48.6]} 11. O-O
{[%clk 0:02:19.1]} 11... Nbd7 {[%clk 0:01:48.8]} 12. a3 {[%clk 0:02:11.2]} 12...
Bxc3 {[%clk 0:01:45.3]} 13. Nxc3 {[%clk 0:02:12.1]} 13... Ne5 {[%clk 0:01:45.7]}
14. Be2 {[%clk 0:02:08.8]} 14... Qe7 {[%clk 0:01:40.8]} 15. Bg5 {[%clk
0:02:07.2]} 15... Qf7 {[%clk 0:01:40.7]} 16. Bxf6 {[%clk 0:02:00.4]} 16... Qxf6
{[%clk 0:01:40.5]} 17. Qd2 {[%clk 0:01:55.9]} 17... a6 {[%clk 0:01:31.2]} 18.
Rae1 {[%clk 0:01:52.2]} 18... Rae8 {[%clk 0:01:28.9]} 19. f4 {[%clk 0:01:47.6]}
19... Ng6 {[%clk 0:01:13.4]} 20. g3 {[%clk 0:01:40.6]} 20... Ne7 {[%clk
0:01:13.2]} 21. Bh5 {[%clk 0:01:30.6]} 21... g6 {[%clk 0:01:09.8]} 22. Re6
{[%clk 0:01:19]} 22... Qf5 {[%clk 0:00:38.7]} 23. Bf3 {[%clk 0:01:18.5]} 23...
Nc8 {[%clk 0:00:16.4]} 24. Rfe1 {[%clk 0:01:10.7]} 24... Rxe6 {[%clk 0:00:15.7]}
25. Rxe6 {[%clk 0:01:11.6]} 25... Qf7 {[%clk 0:00:12.3]} 26. Qe2 {[%clk
0:01:01.8]} 26... b5 {[%clk 0:00:12.1]} 27. Bg4 {[%clk 0:00:55.1]} 27... Qg7
{[%clk 0:00:04.3]} 28. Qe3 {[%clk 0:00:47.7]} 28... Nb6 {[%clk 0:00:04.3]} 29.
Re7 {[%clk 0:00:40]} 29... Qf6 {[%clk 0:00:04.1]} 30. Be6+ {[%clk 0:00:33.8]}
30... Kh8 {[%clk 0:00:03.8]} 31. Rxc7 {[%clk 0:00:33]} 1-0

[Event "Early-Titled-Tuesday-Blitz-November-28-2023"]
[Site "Chess.com"]
[Date "2023.11.28"]
[Round "2"]
[White "Hikaru"]
[Black "subham777"]
[Result "1-0"]
[WhiteElo "3222"]
[BlackElo "2654"]
[TimeControl "180+1"]
[EndTime "8:17:22 PST"]
[Termination "Hikaru won by resignation"]

1. g3 {[%clk 0:03:00.9]} 1... d5 {[%clk 0:02:58.9]} 2. Bg2 {[%clk 0:03:01.2]}
2... Nf6 {[%clk 0:02:59.2]} 3. Nf3 {[%clk 0:03:01.6]} 3... e6 {[%clk 0:02:59.5]}
4. d3 {[%clk 0:03:01.8]} 4... Be7 {[%clk 0:02:59.6]} 5. Nbd2 {[%clk 0:03:02.7]}
5... O-O {[%clk 0:03:00]} 6. O-O {[%clk 0:03:03]} 6... c5 {[%clk 0:02:58.8]} 7.
e4 {[%clk 0:03:03.2]} 7... dxe4 {[%clk 0:02:54.1]} 8. dxe4 {[%clk 0:03:03.2]}
8... Qc7 {[%clk 0:02:54.4]} 9. e5 {[%clk 0:03:02]} 9... Nd5 {[%clk 0:02:53.6]}
10. a3 {[%clk 0:03:01]} 10... Nc6 {[%clk 0:02:52.5]} 11. c4 {[%clk 0:03:01.1]}
11... Nb6 {[%clk 0:02:49.5]} 12. Re1 {[%clk 0:03:01.3]} 12... Rd8 {[%clk
0:02:41.2]} 13. h4 {[%clk 0:02:53.1]} 13... Nxc4 {[%clk 0:02:34.2]} 14. Qe2
{[%clk 0:02:51.6]} 14... Nxd2 {[%clk 0:02:28.2]} 15. Bxd2 {[%clk 0:02:52.5]}
15... Nd4 {[%clk 0:02:17.7]} 16. Nxd4 {[%clk 0:02:51]} 16... cxd4 {[%clk
0:02:18.1]} 17. Qb5 {[%clk 0:02:42.7]} 17... Bd7 {[%clk 0:02:07.2]} 18. Qb3
{[%clk 0:02:37.8]} 18... Bc6 {[%clk 0:02:05.1]} 19. Rac1 {[%clk 0:02:36.4]}
19... Qd7 {[%clk 0:02:00.8]} 20. Bxc6 {[%clk 0:02:12.9]} 20... bxc6 {[%clk
0:02:01.7]} 21. Bg5 {[%clk 0:02:06.3]} 21... Rab8 {[%clk 0:01:41.8]} 22. Qa4
{[%clk 0:02:03.2]} 22... Bxg5 {[%clk 0:01:35.3]} 23. hxg5 {[%clk 0:02:04.1]}
23... Rxb2 {[%clk 0:01:17.8]} 24. Qxc6 {[%clk 0:02:02.6]} 24... Qxc6 {[%clk
0:01:15.6]} 25. Rxc6 {[%clk 0:02:02.3]} 25... Rb7 {[%clk 0:01:11.2]} 26. Rd1
{[%clk 0:01:57.5]} 26... g6 {[%clk 0:01:10.2]} 27. Rd6 {[%clk 0:01:53.2]} 27...
Rxd6 {[%clk 0:00:58.7]} 28. exd6 {[%clk 0:01:53.4]} 28... e5 {[%clk 0:00:57.9]}
29. f4 {[%clk 0:01:53.6]} 29... exf4 {[%clk 0:00:27.9]} 30. Rxd4 {[%clk
0:01:53.4]} 30... Rd7 {[%clk 0:00:21.9]} 31. gxf4 {[%clk 0:01:53.6]} 31... Kg7
{[%clk 0:00:21.4]} 32. Kf2 {[%clk 0:01:44.5]} 32... f6 {[%clk 0:00:21.5]} 33.
Ra4 {[%clk 0:01:35.6]} 33... fxg5 {[%clk 0:00:20.2]} 34. fxg5 {[%clk 0:01:35.6]}
34... Kf7 {[%clk 0:00:20.5]} 35. Ke3 {[%clk 0:01:34.8]} 35... Ke6 {[%clk
0:00:21]} 36. Ra6 {[%clk 0:01:34.8]} 36... Rxd6 {[%clk 0:00:18]} 37. Rxa7 {[%clk
0:01:35.2]} 37... Kf5 {[%clk 0:00:18.5]} 38. Ra5+ {[%clk 0:01:35.6]} 38... Kg4
{[%clk 0:00:17.5]} 39. a4 {[%clk 0:01:36.5]} 39... Rd7 {[%clk 0:00:14.7]} 40.
Rb5 {[%clk 0:01:35.8]} 40... Rf7 {[%clk 0:00:13.1]} 41. a5 {[%clk 0:01:35.9]}
41... Rf1 {[%clk 0:00:13.3]} 42. Kd3 {[%clk 0:01:33.4]} 42... Ra1 {[%clk
0:00:13.2]} 43. Kc3 {[%clk 0:01:34]} 43... Kh5 {[%clk 0:00:09.8]} 44. Kb2 {[%clk
0:01:33.2]} 44... Ra4 {[%clk 0:00:09.4]} 45. Kb3 {[%clk 0:01:33.9]} 45... Ra1
{[%clk 0:00:10]} 46. Kb4 {[%clk 0:01:32.8]} 46... Kg4 {[%clk 0:00:10.2]} 47. Rc5
{[%clk 0:01:32.6]} 47... Rb1+ {[%clk 0:00:08.9]} 48. Kc4 {[%clk 0:01:32.1]}
48... Ra1 {[%clk 0:00:03]} 49. Kb5 {[%clk 0:01:32.3]} 49... Kh5 {[%clk
0:00:01.9]} 50. a6 {[%clk 0:01:28.9]} 50... h6 {[%clk 0:00:02.6]} 51. gxh6+
{[%clk 0:01:24.8]} 51... Kxh6 {[%clk 0:00:03.5]} 52. Kb6 {[%clk 0:01:25.3]}
52... g5 {[%clk 0:00:01]} 53. Ra5 {[%clk 0:01:19.9]} 53... Rb1+ {[%clk
0:00:01.2]} 54. Rb5 {[%clk 0:01:20.6]} 54... Ra1 {[%clk 0:00:01.6]} 55. a7
{[%clk 0:01:21.4]} 55... Rxa7 {[%clk 0:00:01.8]} 56. Kxa7 {[%clk 0:01:22.3]}
56... g4 {[%clk 0:00:02.1]} 57. Kb6 {[%clk 0:01:23.1]} 57... g3 {[%clk
0:00:02.6]} 58. Rb3 {[%clk 0:01:23.2]} 58... Kg5 {[%clk 0:00:02.1]} 59. Rxg3+
{[%clk 0:01:24.1]} 1-0

[Event "Early-Titled-Tuesday-Blitz-November-28-2023"]
[Site "Chess.com"]
[Date "2023.11.28"]
[Round "2"]
[White "IM_ArthurDW08"]
[Black "kuanysh1981"]
[Result "1-0"]
[WhiteElo "2776"]
[BlackElo "2444"]
[TimeControl "180+1"]
[EndTime "8:17:22 PST"]
[Termination "IM_ArthurDW08 won by resignation"]

1. e4 {[%clk 0:03:00.9]} 1... c5 {[%clk 0:02:59.7]} 2. Nf3 {[%clk 0:03:00.9]}
2... e6 {[%clk 0:02:59.8]} 3. d4 {[%clk 0:02:59.1]} 3... cxd4 {[%clk 0:03:00.7]}
4. Nxd4 {[%clk 0:03:00]} 4... a6 {[%clk 0:03:00.8]} 5. h4 {[%clk 0:02:47.2]}
5... Qc7 {[%clk 0:02:52.4]} 6. Nc3 {[%clk 0:02:36.5]} 6... Bb4 {[%clk
0:02:49.5]} 7. Bd2 {[%clk 0:02:33.4]} 7... Nf6 {[%clk 0:02:49.3]} 8. Qe2 {[%clk
0:02:23]} 8... Nc6 {[%clk 0:02:42.8]} 9. Nb3 {[%clk 0:02:19.5]} 9... Qe5 {[%clk
0:02:19.5]} 10. O-O-O {[%clk 0:02:04.2]} 10... Nd4 {[%clk 0:02:09.7]} 11. Nxd4
{[%clk 0:01:58.2]} 11... Qxd4 {[%clk 0:02:10.6]} 12. f3 {[%clk 0:01:56.9]} 12...
Qb6 {[%clk 0:02:04.8]} 13. g4 {[%clk 0:01:48.5]} 13... d6 {[%clk 0:01:57.8]} 14.
g5 {[%clk 0:01:44.2]} 14... Nh5 {[%clk 0:01:50]} 15. Qh2 {[%clk 0:01:33.6]}
15... Bd7 {[%clk 0:01:36.9]} 16. a3 {[%clk 0:01:25.3]} 16... Bc5 {[%clk
0:01:28.6]} 17. Bh3 {[%clk 0:01:10.4]} 17... Be3 {[%clk 0:01:16.8]} 18. Bg4
{[%clk 0:01:05]} 18... Nf4 {[%clk 0:01:16.6]} 19. Rhe1 {[%clk 0:00:49.8]} 19...
Bxd2+ {[%clk 0:01:08.9]} 20. Rxd2 {[%clk 0:00:50.7]} 20... Ng6 {[%clk
0:01:05.9]} 21. Rxd6 {[%clk 0:00:42.5]} 21... Qc5 {[%clk 0:01:00.3]} 22. Red1
{[%clk 0:00:25.7]} 22... O-O-O {[%clk 0:00:59.8]} 23. Nd5 {[%clk 0:00:19.1]}
23... exd5 {[%clk 0:00:12.2]} 24. Bxd7+ {[%clk 0:00:20]} 24... Rxd7 {[%clk
0:00:07.3]} 25. Rxd7 {[%clk 0:00:20.9]} 25... Rd8 {[%clk 0:00:03.1]} 26. Rxd8+
{[%clk 0:00:21.1]} 1-0

[Event "Early-Titled-Tuesday-Blitz-November-28-2023"]
[Site "Chess.com"]
[Date "2023.11.28"]
[Round "2"]
[White "CSB7"]
[Black "Ron_Weasley_Chess"]
[Result "1-0"]
[WhiteElo "2726"]
[BlackElo "2388"]
[TimeControl "180+1"]
[EndTime "8:17:22 PST"]
[Termination "CSB7 won on time"]

1. e4 {[%clk 0:03:00.9]} 1... c6 {[%clk 0:03:00.1]} 2. Nf3 {[%clk 0:02:55.2]}
2... d5 {[%clk 0:03:00.3]} 3. d3 {[%clk 0:02:56]} 3... g6 {[%clk 0:03:00]} 4. e5
{[%clk 0:02:53.8]} 4... f6 {[%clk 0:02:58.5]} 5. d4 {[%clk 0:02:50.9]} 5... Bg7
{[%clk 0:02:58.2]} 6. h3 {[%clk 0:02:44.7]} 6... Nh6 {[%clk 0:02:57.5]} 7. Bd3
{[%clk 0:02:15]} 7... O-O {[%clk 0:02:57.1]} 8. O-O {[%clk 0:02:15.5]} 8... g5
{[%clk 0:02:29.9]} 9. exf6 {[%clk 0:01:53.3]} 9... exf6 {[%clk 0:02:29.5]} 10.
c4 {[%clk 0:01:54]} 10... Be6 {[%clk 0:01:54.6]} 11. Re1 {[%clk 0:01:43.1]}
11... Qd7 {[%clk 0:01:49.4]} 12. cxd5 {[%clk 0:01:39]} 12... Bxd5 {[%clk
0:01:50.3]} 13. Nc3 {[%clk 0:01:37.9]} 13... Na6 {[%clk 0:01:29.8]} 14. Nxd5
{[%clk 0:01:24.3]} 14... cxd5 {[%clk 0:01:30.7]} 15. Qb3 {[%clk 0:01:17.5]}
15... Nc7 {[%clk 0:01:17.5]} 16. Bd2 {[%clk 0:01:10.3]} 16... b6 {[%clk
0:01:03.7]} 17. Rac1 {[%clk 0:01:08.4]} 17... Rac8 {[%clk 0:00:56]} 18. Rc3
{[%clk 0:00:59.5]} 18... Ne6 {[%clk 0:00:44.8]} 19. Qc2 {[%clk 0:00:43.9]} 19...
Rxc3 {[%clk 0:00:22.8]} 20. bxc3 {[%clk 0:00:44.8]} 20... Bh8 {[%clk 0:00:14.9]}
21. c4 {[%clk 0:00:42.1]} 21... Rc8 {[%clk 0:00:14.3]} 22. Qb3 {[%clk
0:00:42.2]} 22... Nf7 {[%clk 0:00:08.7]} 23. cxd5 {[%clk 0:00:26.6]} 23... Nc7
{[%clk 0:00:09.3]} 24. d6 {[%clk 0:00:25.3]} 24... Qxd6 {[%clk 0:00:07.9]} 25.
Bc4 {[%clk 0:00:26]} 25... Rf8 {[%clk 0:00:03.4]} 26. Bb4 {[%clk 0:00:26.2]}
26... Qd7 {[%clk 0:00:01.6]} 27. Re7 {[%clk 0:00:22.9]} 1-0

[Event "Early-Titled-Tuesday-Blitz-November-28-2023"]
[Site "Chess.com"]
[Date "2023.11.28"]
[Round "2"]
[White "FrenchMonster2002"]
[Black "kkpanu9"]
[Result "1-0"]
[WhiteElo "2431"]
[BlackElo "2038"]
[TimeControl "180+1"]
[EndTime "8:17:27 PST"]
[Termination "FrenchMonster2002 won on time"]

1. e4 {[%clk 0:02:53.5]} 1... c5 {[%clk 0:02:59.7]} 2. Nc3 {[%clk 0:02:51.6]}
2... d6 {[%clk 0:02:57]} 3. d4 {[%clk 0:02:51.4]} 3... cxd4 {[%clk 0:02:56.7]}
4. Qxd4 {[%clk 0:02:52.3]} 4... Nc6 {[%clk 0:02:53.6]} 5. Qd2 {[%clk 0:02:52.3]}
5... e5 {[%clk 0:02:50.2]} 6. b3 {[%clk 0:02:49.6]} 6... Nf6 {[%clk 0:02:22.9]}
7. Bb2 {[%clk 0:02:48.9]} 7... Be7 {[%clk 0:02:21.3]} 8. O-O-O {[%clk
0:02:47.5]} 8... O-O {[%clk 0:02:19.1]} 9. Kb1 {[%clk 0:02:46.2]} 9... Be6
{[%clk 0:02:13.3]} 10. f3 {[%clk 0:02:41.9]} 10... a5 {[%clk 0:02:04.9]} 11. Bb5
{[%clk 0:02:34.6]} 11... Nb4 {[%clk 0:02:00.4]} 12. g4 {[%clk 0:02:30.3]} 12...
Qb6 {[%clk 0:01:33.7]} 13. g5 {[%clk 0:02:22.8]} 13... Nh5 {[%clk 0:01:21.3]}
14. Nge2 {[%clk 0:02:15.1]} 14... Rfc8 {[%clk 0:01:19.6]} 15. h4 {[%clk
0:01:54.8]} 15... Rc7 {[%clk 0:00:59]} 16. a3 {[%clk 0:01:39.2]} 16... Nc6
{[%clk 0:00:52.2]} 17. a4 {[%clk 0:01:27.5]} 17... Na7 {[%clk 0:00:36.6]} 18. f4
{[%clk 0:01:15.6]} 18... exf4 {[%clk 0:00:32.9]} 19. Nxf4 {[%clk 0:01:14.8]}
19... Nxf4 {[%clk 0:00:32.5]} 20. Qxf4 {[%clk 0:01:15.1]} 20... Rac8 {[%clk
0:00:29.3]} 21. Rd3 {[%clk 0:01:04.5]} 21... Nxb5 {[%clk 0:00:26.4]} 22. axb5
{[%clk 0:01:05]} 22... a4 {[%clk 0:00:22.2]} 23. bxa4 {[%clk 0:00:52.8]} 23...
Rc4 {[%clk 0:00:17.2]} 24. h5 {[%clk 0:00:43.3]} 24... Qc5 {[%clk 0:00:15.4]}
25. g6 {[%clk 0:00:27.1]} 25... Qb4 {[%clk 0:00:07.7]} 26. gxh7+ {[%clk
0:00:22.2]} 26... Kh8 {[%clk 0:00:07.6]} 27. h6 {[%clk 0:00:15]} 27... Rxc3
{[%clk 0:00:01.5]} 28. hxg7+ {[%clk 0:00:15.1]} 1-0

[Event "Early-Titled-Tuesday-Blitz-November-28-2023"]
[Site "Chess.com"]
[Date "2023.11.28"]
[Round "2"]
[White "Nechitaylo_Nikita"]
[Black "YouShallNotPass001"]
[Result "0-1"]
[WhiteElo "2126"]
[BlackElo "2450"]
[TimeControl "180+1"]
[EndTime "8:17:28 PST"]
[Termination "YouShallNotPass001 won by resignation"]

1. d4 {[%clk 0:02:57.5]} 1... Nf6 {[%clk 0:03:00.3]} 2. c4 {[%clk 0:02:57.7]}
2... e6 {[%clk 0:03:01.1]} 3. Nc3 {[%clk 0:02:55.9]} 3... d5 {[%clk 0:03:00.5]}
4. cxd5 {[%clk 0:02:56.8]} 4... exd5 {[%clk 0:03:01]} 5. Bg5 {[%clk 0:02:57.6]}
5... Be7 {[%clk 0:03:00.4]} 6. e3 {[%clk 0:02:57.8]} 6... O-O {[%clk 0:03:00.8]}
7. Bd3 {[%clk 0:02:57.7]} 7... c6 {[%clk 0:03:01.3]} 8. Qc2 {[%clk 0:02:56.8]}
8... Nbd7 {[%clk 0:03:01.7]} 9. Nf3 {[%clk 0:02:56.5]} 9... Re8 {[%clk
0:03:01.8]} 10. O-O {[%clk 0:02:53.6]} 10... a5 {[%clk 0:03:01.9]} 11. Rab1
{[%clk 0:02:46.2]} 11... h6 {[%clk 0:02:51.4]} 12. Bh4 {[%clk 0:02:45.1]} 12...
Nf8 {[%clk 0:02:36]} 13. a3 {[%clk 0:02:33.8]} 13... Be6 {[%clk 0:02:25.3]} 14.
b4 {[%clk 0:02:30.3]} 14... axb4 {[%clk 0:02:26.2]} 15. axb4 {[%clk 0:02:31.2]}
15... b5 {[%clk 0:02:24.1]} 16. Ne5 {[%clk 0:02:27]} 16... Qb6 {[%clk
0:02:11.4]} 17. f4 {[%clk 0:02:17.6]} 17... N6d7 {[%clk 0:02:05.4]} 18. Bxe7
{[%clk 0:01:56.1]} 18... Rxe7 {[%clk 0:02:06.3]} 19. Qf2 {[%clk 0:01:15.2]}
19... Ra3 {[%clk 0:01:44]} 20. Rfc1 {[%clk 0:00:30.6]} 20... f6 {[%clk
0:01:12.9]} 21. Nxc6 {[%clk 0:00:29.9]} 21... Qxc6 {[%clk 0:01:11.6]} 22. Nxb5
{[%clk 0:00:30.6]} 22... Qa8 {[%clk 0:01:10.2]} 23. Nxa3 {[%clk 0:00:20]} 23...
Qxa3 {[%clk 0:01:11.1]} 24. Qd2 {[%clk 0:00:06.7]} 24... Qa7 {[%clk 0:01:05.7]}
25. b5 {[%clk 0:00:06.6]} 25... Nb6 {[%clk 0:01:01.8]} 26. Ra1 {[%clk
0:00:06.9]} 26... Qb7 {[%clk 0:01:01.3]} 27. Rc6 {[%clk 0:00:07.5]} 27... Bf7
{[%clk 0:00:59.5]} 28. Qa5 {[%clk 0:00:05.4]} 28... Nc4 {[%clk 0:00:53.7]} 29.
Bxc4 {[%clk 0:00:04.5]} 29... dxc4 {[%clk 0:00:54.6]} 30. Rb1 {[%clk 0:00:02.1]}
30... Rxe3 {[%clk 0:00:53.5]} 31. Qa6 {[%clk 0:00:01.3]} 31... Qd7 {[%clk
0:00:53]} 32. Qb6 {[%clk 0:00:01.3]} 32... c3 {[%clk 0:00:49.7]} 33. Rc8 {[%clk
0:00:01.7]} 33... Qxc8 {[%clk 0:00:48.3]} 34. d5 {[%clk 0:00:01.6]} 34... c2
{[%clk 0:00:48.4]} 35. Rc1 {[%clk 0:00:01.5]} 35... Rd3 {[%clk 0:00:48.3]} 36.
d6 {[%clk 0:00:01.6]} 36... Rd1+ {[%clk 0:00:48.3]} 37. Kf2 {[%clk 0:00:01.4]}
37... Rxc1 {[%clk 0:00:48]} 38. Qc6 {[%clk 0:00:02.3]} 38... Rf1+ {[%clk
0:00:44]} 39. Kxf1 {[%clk 0:00:02.3]} 39... c1=Q+ {[%clk 0:00:44.5]} 40. Qxc1
{[%clk 0:00:02.9]} 40... Qxc1+ {[%clk 0:00:44.4]} 41. Kf2 {[%clk 0:00:03.8]}
41... Qd2+ {[%clk 0:00:44.6]} 0-1